{"text_format":"1","workbook":"xlsx","n_sheets":3,"sheets":["Main","sat","sun"],"not_rendered":{"charts":0,"images":0,"macros":1,"external_links":0,"defined_names":5,"comments":0,"pivot_tables":0},"unopened":[],"bounds":{"document_bytes":16777216,"sheet_cells":100000,"rows_first":2000,"rows_last":500,"rows_between":2000,"halvings":0,"cell_chars":16384,"cell_head_chars":4096},"cells_cut":0,"cells_raw":0,"read":"whole","date_system":"1900"}

{"sheet":"Main","index":0,"n_rows":200,"n_cols":703,"rows_kept":200,"cut":false,"hidden":false,"merged":[]}
["الرقم المسلسل","اسم الطالب","المجموعة",null,null,null,null,"الٍشهر",null,null,null,null,null,null,null,null,null,null,null,null,null,null,null,null,null,null,null,null,null,null,null,null,null,null,null,null,null,null,null,null,null,null,null,null,null,null,null,null,null,null,null,null,null,null,null,null,null,null,null,null,null,null,null,null,null,null,null,null,null,null,null,null,null,null,null,null,null,null,null,null,null,null,null,null,null,null,null,null,null,null,null,null,null,null,null,null,null,null,null,null,null,null,null,null,null,null,null,null,null,null,null,null,null,null,null,null,null,null,null,null,null,null,null,null,null,null,null,null,null,null,null,null,null,null,null,null,null,null,null,null,null,null,null,null,null,null,null,null,null,null,null,null,null,null,null,null,null,null,null,null,null,null,null,null,null,null,null,null,null,null,null,null,null,null,null,null,null,null,null,null,null,null,null,null,null,null,null,null,null,null,null,null,null,null,null,null,null,null,null,null,null,null,null,null,null,null,null,null,null,null,null,null,null,null,null,null,null,null,null,null,null,null,null,null,null,null,null,null,null,null,null,null,null,null,null,null,null,null,null,null,null,null,null,null,null,null,null,null,null,null,null,null,null,null,null,null,null,null,null,null,null,null,null,null,null,null,null,null,null,null,null,null,null,null,null,null,null,null,null,null,null,null,null,null,null,null,null,null,null,null,null,null,null,null,null,null,null,null,null,null,null,null,null,null,null,null,null,null,null,null,null,null,null,null,null,null,null,null,null,null,null,null,null,null,null,null,null,null,null,null,null,null,null,null,null,null,null,null,null,null,null,null,null,null,null,null,null,null,null,null,null,null,null,null,null,null,null,null,null,null,null,null,null,null,null,null,null,null,null,null,null,null,null,null,null,null,null,null,null,null,null,null,null,null,null,null,null,null,null,null,null,null,null,null,null,null,null,null,null,null,null,null,null,null,null,null,null,null,null,null,null,null,null,null,null,null,null,null,null,null,null,null,null,null,null,null,null,null,null,null,null,null,null,null,null,null,null,null,null,null,null,null,null,null,null,null,null,null,null,null,null,null,null,null,null,null,null,null,null,null,null,null,null,null,null,null,null,null,null,null,null,null,null,null,null,null,null,null,null,null,null,null,null,null,null,null,null,null,null,null,null,null,null,null,null,null,null,null,null,null,null,null,null,null,null,null,null,null,null,null,null,null,null,null,null,null,null,null,null,null,null,null,null,null,null,null,null,null,null,null,null,null,null,null,null,null,null,null,null,null,null,null,null,null,null,null,null,null,null,null,null,null,null,null,null,null,null,null,null,null,null,null,null,null,null,null,null,null,null,null,null,null,null,null,null,null,null,null,null,null,null,null,null,null,null,null,null,null,null,null,null,null,null,null,null,null,null,null,null,null,null,null,null,null,null,null,null,null,null,null,null,null,null,null,null,null,null,null,null,null,null,null,null,null,null,null,null,null,null,null,null,null,null,null,null,null,null,null,null,null,null,null,null,null,null,null,null,null,null,null,null,null,null,null,null,null,null,null,null,null,null,null,null,null,null,null,null,null,null,null,null,null,null,null,null,null,null,null,null,null,null,null,null,null,null,null,null,null,null,null,null,null,null,null,null,null,null,null,null,null,null,"الٍشهر"]
[{"$f":"IF(B2=\"\",\"\",MAX($A$1:A1)+1)","v":1},"sat1","السبت",null,"السبت",{"$f":"VLOOKUP(H2,$ZZ$2:$AAA$13,2,0)","v":5},null,"مايو",2018,null,null,null,null,null,null,null,null,null,null,null,null,null,null,null,null,null,null,null,null,null,null,null,null,null,null,null,null,null,null,null,null,null,null,null,null,null,null,null,null,null,null,null,null,null,null,null,null,null,null,null,null,null,null,null,null,null,null,null,null,null,null,null,null,null,null,null,null,null,null,null,null,null,null,null,null,null,null,null,null,null,null,null,null,null,null,null,null,null,null,null,null,null,null,null,null,null,null,null,null,null,null,null,null,null,null,null,null,null,null,null,null,null,null,null,null,null,null,null,null,null,null,null,null,null,null,null,null,null,null,null,null,null,null,null,null,null,null,null,null,null,null,null,null,null,null,null,null,null,null,null,null,null,null,null,null,null,null,null,null,null,null,null,null,null,null,null,null,null,null,null,null,null,null,null,null,null,null,null,null,null,null,null,null,null,null,null,null,null,null,null,null,null,null,null,null,null,null,null,null,null,null,null,null,null,null,null,null,null,null,null,null,null,null,null,null,null,null,null,null,null,null,null,null,null,null,null,null,null,null,null,null,null,null,null,null,null,null,null,null,null,null,null,null,null,null,null,null,null,null,null,null,null,null,null,null,null,null,null,null,null,null,null,null,null,null,null,null,null,null,null,null,null,null,null,null,null,null,null,null,null,null,null,null,null,null,null,null,null,null,null,null,null,null,null,null,null,null,null,null,null,null,null,null,null,null,null,null,null,null,null,null,null,null,null,null,null,null,null,null,null,null,null,null,null,null,null,null,null,null,null,null,null,null,null,null,null,null,null,null,null,null,null,null,null,null,null,null,null,null,null,null,null,null,null,null,null,null,null,null,null,null,null,null,null,null,null,null,null,null,null,null,null,null,null,null,null,null,null,null,null,null,null,null,null,null,null,null,null,null,null,null,null,null,null,null,null,null,null,null,null,null,null,null,null,null,null,null,null,null,null,null,null,null,null,null,null,null,null,null,null,null,null,null,null,null,null,null,null,null,null,null,null,null,null,null,null,null,null,null,null,null,null,null,null,null,null,null,null,null,null,null,null,null,null,null,null,null,null,null,null,null,null,null,null,null,null,null,null,null,null,null,null,null,null,null,null,null,null,null,null,null,null,null,null,null,null,null,null,null,null,null,null,null,null,null,null,null,null,null,null,null,null,null,null,null,null,null,null,null,null,null,null,null,null,null,null,null,null,null,null,null,null,null,null,null,null,null,null,null,null,null,null,null,null,null,null,null,null,null,null,null,null,null,null,null,null,null,null,null,null,null,null,null,null,null,null,null,null,null,null,null,null,null,null,null,null,null,null,null,null,null,null,null,null,null,null,null,null,null,null,null,null,null,null,null,null,null,null,null,null,null,null,null,null,null,null,null,null,null,null,null,null,null,null,null,null,null,null,null,null,null,null,null,null,null,null,null,null,null,null,null,null,null,null,null,null,null,null,null,null,null,null,null,null,null,null,null,null,null,null,null,null,null,null,null,null,null,null,null,null,null,null,null,null,null,null,null,null,null,null,null,null,null,null,null,null,null,null,null,null,null,null,null,null,null,null,null,null,null,null,null,null,null,null,null,null,null,null,null,null,null,"يناير",1]
[{"$f":"IF(B3=\"\",\"\",MAX($A$1:A2)+1)","v":2},"sat2","الأحد",null,"الأحد",null,null,null,null,null,null,null,null,null,null,null,null,null,null,null,null,null,null,null,null,null,null,null,null,null,null,null,null,null,null,null,null,null,null,null,null,null,null,null,null,null,null,null,null,null,null,null,null,null,null,null,null,null,null,null,null,null,null,null,null,null,null,null,null,null,null,null,null,null,null,null,null,null,null,null,null,null,null,null,null,null,null,null,null,null,null,null,null,null,null,null,null,null,null,null,null,null,null,null,null,null,null,null,null,null,null,null,null,null,null,null,null,null,null,null,null,null,null,null,null,null,null,null,null,null,null,null,null,null,null,null,null,null,null,null,null,null,null,null,null,null,null,null,null,null,null,null,null,null,null,null,null,null,null,null,null,null,null,null,null,null,null,null,null,null,null,null,null,null,null,null,null,null,null,null,null,null,null,null,null,null,null,null,null,null,null,null,null,null,null,null,null,null,null,null,null,null,null,null,null,null,null,null,null,null,null,null,null,null,null,null,null,null,null,null,null,null,null,null,null,null,null,null,null,null,null,null,null,null,null,null,null,null,null,null,null,null,null,null,null,null,null,null,null,null,null,null,null,null,null,null,null,null,null,null,null,null,null,null,null,null,null,null,null,null,null,null,null,null,null,null,null,null,null,null,null,null,null,null,null,null,null,null,null,null,null,null,null,null,null,null,null,null,null,null,null,null,null,null,null,null,null,null,null,null,null,null,null,null,null,null,null,null,null,null,null,null,null,null,null,null,null,null,null,null,null,null,null,null,null,null,null,null,null,null,null,null,null,null,null,null,null,null,null,null,null,null,null,null,null,null,null,null,null,null,null,null,null,null,null,null,null,null,null,null,null,null,null,null,null,null,null,null,null,null,null,null,null,null,null,null,null,null,null,null,null,null,null,null,null,null,null,null,null,null,null,null,null,null,null,null,null,null,null,null,null,null,null,null,null,null,null,null,null,null,null,null,null,null,null,null,null,null,null,null,null,null,null,null,null,null,null,null,null,null,null,null,null,null,null,null,null,null,null,null,null,null,null,null,null,null,null,null,null,null,null,null,null,null,null,null,null,null,null,null,null,null,null,null,null,null,null,null,null,null,null,null,null,null,null,null,null,null,null,null,null,null,null,null,null,null,null,null,null,null,null,null,null,null,null,null,null,null,null,null,null,null,null,null,null,null,null,null,null,null,null,null,null,null,null,null,null,null,null,null,null,null,null,null,null,null,null,null,null,null,null,null,null,null,null,null,null,null,null,null,null,null,null,null,null,null,null,null,null,null,null,null,null,null,null,null,null,null,null,null,null,null,null,null,null,null,null,null,null,null,null,null,null,null,null,null,null,null,null,null,null,null,null,null,null,null,null,null,null,null,null,null,null,null,null,null,null,null,null,null,null,null,null,null,null,null,null,null,null,null,null,null,null,null,null,null,null,null,null,null,null,null,null,null,null,null,null,null,null,null,null,null,null,null,null,null,null,null,null,null,null,null,null,null,null,null,null,null,null,null,null,null,null,null,null,null,null,null,null,null,null,null,null,null,null,null,null,null,null,null,null,null,null,null,null,null,null,null,null,null,null,null,null,null,null,null,null,null,null,null,null,"فيراير",2]
[{"$f":"IF(B4=\"\",\"\",MAX($A$1:A3)+1)","v":3},"sat3","السبت",null,null,null,null,null,null,null,null,null,null,null,null,null,null,null,null,null,null,null,null,null,null,null,null,null,null,null,null,null,null,null,null,null,null,null,null,null,null,null,null,null,null,null,null,null,null,null,null,null,null,null,null,null,null,null,null,null,null,null,null,null,null,null,null,null,null,null,null,null,null,null,null,null,null,null,null,null,null,null,null,null,null,null,null,null,null,null,null,null,null,null,null,null,null,null,null,null,null,null,null,null,null,null,null,null,null,null,null,null,null,null,null,null,null,null,null,null,null,null,null,null,null,null,null,null,null,null,null,null,null,null,null,null,null,null,null,null,null,null,null,null,null,null,null,null,null,null,null,null,null,null,null,null,null,null,null,null,null,null,null,null,null,null,null,null,null,null,null,null,null,null,null,null,null,null,null,null,null,null,null,null,null,null,null,null,null,null,null,null,null,null,null,null,null,null,null,null,null,null,null,null,null,null,null,null,null,null,null,null,null,null,null,null,null,null,null,null,null,null,null,null,null,null,null,null,null,null,null,null,null,null,null,null,null,null,null,null,null,null,null,null,null,null,null,null,null,null,null,null,null,null,null,null,null,null,null,null,null,null,null,null,null,null,null,null,null,null,null,null,null,null,null,null,null,null,null,null,null,null,null,null,null,null,null,null,null,null,null,null,null,null,null,null,null,null,null,null,null,null,null,null,null,null,null,null,null,null,null,null,null,null,null,null,null,null,null,null,null,null,null,null,null,null,null,null,null,null,null,null,null,null,null,null,null,null,null,null,null,null,null,null,null,null,null,null,null,null,null,null,null,null,null,null,null,null,null,null,null,null,null,null,null,null,null,null,null,null,null,null,null,null,null,null,null,null,null,null,null,null,null,null,null,null,null,null,null,null,null,null,null,null,null,null,null,null,null,null,null,null,null,null,null,null,null,null,null,null,null,null,null,null,null,null,null,null,null,null,null,null,null,null,null,null,null,null,null,null,null,null,null,null,null,null,null,null,null,null,null,null,null,null,null,null,null,null,null,null,null,null,null,null,null,null,null,null,null,null,null,null,null,null,null,null,null,null,null,null,null,null,null,null,null,null,null,null,null,null,null,null,null,null,null,null,null,null,null,null,null,null,null,null,null,null,null,null,null,null,null,null,null,null,null,null,null,null,null,null,null,null,null,null,null,null,null,null,null,null,null,null,null,null,null,null,null,null,null,null,null,null,null,null,null,null,null,null,null,null,null,null,null,null,null,null,null,null,null,null,null,null,null,null,null,null,null,null,null,null,null,null,null,null,null,null,null,null,null,null,null,null,null,null,null,null,null,null,null,null,null,null,null,null,null,null,null,null,null,null,null,null,null,null,null,null,null,null,null,null,null,null,null,null,null,null,null,null,null,null,null,null,null,null,null,null,null,null,null,null,null,null,null,null,null,null,null,null,null,null,null,null,null,null,null,null,null,null,null,null,null,null,null,null,null,null,null,null,null,null,null,null,null,null,null,null,null,null,null,null,null,null,null,null,null,null,null,null,null,null,null,null,null,null,null,null,null,null,null,null,null,null,null,null,null,null,null,null,null,null,null,null,null,null,null,null,null,null,null,null,null,"مارس",3]
[{"$f":"IF(B5=\"\",\"\",MAX($A$1:A4)+1)","v":4},"sat4","السبت",null,null,null,null,null,null,null,null,null,null,null,null,null,null,null,null,null,null,null,null,null,null,null,null,null,null,null,null,null,null,null,null,null,null,null,null,null,null,null,null,null,null,null,null,null,null,null,null,null,null,null,null,null,null,null,null,null,null,null,null,null,null,null,null,null,null,null,null,null,null,null,null,null,null,null,null,null,null,null,null,null,null,null,null,null,null,null,null,null,null,null,null,null,null,null,null,null,null,null,null,null,null,null,null,null,null,null,null,null,null,null,null,null,null,null,null,null,null,null,null,null,null,null,null,null,null,null,null,null,null,null,null,null,null,null,null,null,null,null,null,null,null,null,null,null,null,null,null,null,null,null,null,null,null,null,null,null,null,null,null,null,null,null,null,null,null,null,null,null,null,null,null,null,null,null,null,null,null,null,null,null,null,null,null,null,null,null,null,null,null,null,null,null,null,null,null,null,null,null,null,null,null,null,null,null,null,null,null,null,null,null,null,null,null,null,null,null,null,null,null,null,null,null,null,null,null,null,null,null,null,null,null,null,null,null,null,null,null,null,null,null,null,null,null,null,null,null,null,null,null,null,null,null,null,null,null,null,null,null,null,null,null,null,null,null,null,null,null,null,null,null,null,null,null,null,null,null,null,null,null,null,null,null,null,null,null,null,null,null,null,null,null,null,null,null,null,null,null,null,null,null,null,null,null,null,null,null,null,null,null,null,null,null,null,null,null,null,null,null,null,null,null,null,null,null,null,null,null,null,null,null,null,null,null,null,null,null,null,null,null,null,null,null,null,null,null,null,null,null,null,null,null,null,null,null,null,null,null,null,null,null,null,null,null,null,null,null,null,null,null,null,null,null,null,null,null,null,null,null,null,null,null,null,null,null,null,null,null,null,null,null,null,null,null,null,null,null,null,null,null,null,null,null,null,null,null,null,null,null,null,null,null,null,null,null,null,null,null,null,null,null,null,null,null,null,null,null,null,null,null,null,null,null,null,null,null,null,null,null,null,null,null,null,null,null,null,null,null,null,null,null,null,null,null,null,null,null,null,null,null,null,null,null,null,null,null,null,null,null,null,null,null,null,null,null,null,null,null,null,null,null,null,null,null,null,null,null,null,null,null,null,null,null,null,null,null,null,null,null,null,null,null,null,null,null,null,null,null,null,null,null,null,null,null,null,null,null,null,null,null,null,null,null,null,null,null,null,null,null,null,null,null,null,null,null,null,null,null,null,null,null,null,null,null,null,null,null,null,null,null,null,null,null,null,null,null,null,null,null,null,null,null,null,null,null,null,null,null,null,null,null,null,null,null,null,null,null,null,null,null,null,null,null,null,null,null,null,null,null,null,null,null,null,null,null,null,null,null,null,null,null,null,null,null,null,null,null,null,null,null,null,null,null,null,null,null,null,null,null,null,null,null,null,null,null,null,null,null,null,null,null,null,null,null,null,null,null,null,null,null,null,null,null,null,null,null,null,null,null,null,null,null,null,null,null,null,null,null,null,null,null,null,null,null,null,null,null,null,null,null,null,null,null,null,null,null,null,null,null,null,null,null,null,null,null,null,null,null,null,null,null,null,null,null,null,null,null,null,"أبريل",4]
[{"$f":"IF(B6=\"\",\"\",MAX($A$1:A5)+1)","v":5},"sat5","الأحد",null,null,null,null,null,null,null,null,null,null,null,null,null,null,null,null,null,null,null,null,null,null,null,null,null,null,null,null,null,null,null,null,null,null,null,null,null,null,null,null,null,null,null,null,null,null,null,null,null,null,null,null,null,null,null,null,null,null,null,null,null,null,null,null,null,null,null,null,null,null,null,null,null,null,null,null,null,null,null,null,null,null,null,null,null,null,null,null,null,null,null,null,null,null,null,null,null,null,null,null,null,null,null,null,null,null,null,null,null,null,null,null,null,null,null,null,null,null,null,null,null,null,null,null,null,null,null,null,null,null,null,null,null,null,null,null,null,null,null,null,null,null,null,null,null,null,null,null,null,null,null,null,null,null,null,null,null,null,null,null,null,null,null,null,null,null,null,null,null,null,null,null,null,null,null,null,null,null,null,null,null,null,null,null,null,null,null,null,null,null,null,null,null,null,null,null,null,null,null,null,null,null,null,null,null,null,null,null,null,null,null,null,null,null,null,null,null,null,null,null,null,null,null,null,null,null,null,null,null,null,null,null,null,null,null,null,null,null,null,null,null,null,null,null,null,null,null,null,null,null,null,null,null,null,null,null,null,null,null,null,null,null,null,null,null,null,null,null,null,null,null,null,null,null,null,null,null,null,null,null,null,null,null,null,null,null,null,null,null,null,null,null,null,null,null,null,null,null,null,null,null,null,null,null,null,null,null,null,null,null,null,null,null,null,null,null,null,null,null,null,null,null,null,null,null,null,null,null,null,null,null,null,null,null,null,null,null,null,null,null,null,null,null,null,null,null,null,null,null,null,null,null,null,null,null,null,null,null,null,null,null,null,null,null,null,null,null,null,null,null,null,null,null,null,null,null,null,null,null,null,null,null,null,null,null,null,null,null,null,null,null,null,null,null,null,null,null,null,null,null,null,null,null,null,null,null,null,null,null,null,null,null,null,null,null,null,null,null,null,null,null,null,null,null,null,null,null,null,null,null,null,null,null,null,null,null,null,null,null,null,null,null,null,null,null,null,null,null,null,null,null,null,null,null,null,null,null,null,null,null,null,null,null,null,null,null,null,null,null,null,null,null,null,null,null,null,null,null,null,null,null,null,null,null,null,null,null,null,null,null,null,null,null,null,null,null,null,null,null,null,null,null,null,null,null,null,null,null,null,null,null,null,null,null,null,null,null,null,null,null,null,null,null,null,null,null,null,null,null,null,null,null,null,null,null,null,null,null,null,null,null,null,null,null,null,null,null,null,null,null,null,null,null,null,null,null,null,null,null,null,null,null,null,null,null,null,null,null,null,null,null,null,null,null,null,null,null,null,null,null,null,null,null,null,null,null,null,null,null,null,null,null,null,null,null,null,null,null,null,null,null,null,null,null,null,null,null,null,null,null,null,null,null,null,null,null,null,null,null,null,null,null,null,null,null,null,null,null,null,null,null,null,null,null,null,null,null,null,null,null,null,null,null,null,null,null,null,null,null,null,null,null,null,null,null,null,null,null,null,null,null,null,null,null,null,null,null,null,null,null,null,null,null,null,null,null,null,null,null,null,null,null,null,null,null,null,null,null,null,null,null,null,null,null,null,null,null,null,"مايو",5]
[{"$f":"IF(B7=\"\",\"\",MAX($A$1:A6)+1)","v":6},"sat6","الأحد",null,null,null,null,null,null,null,null,null,null,null,null,null,null,null,null,null,null,null,null,null,null,null,null,null,null,null,null,null,null,null,null,null,null,null,null,null,null,null,null,null,null,null,null,null,null,null,null,null,null,null,null,null,null,null,null,null,null,null,null,null,null,null,null,null,null,null,null,null,null,null,null,null,null,null,null,null,null,null,null,null,null,null,null,null,null,null,null,null,null,null,null,null,null,null,null,null,null,null,null,null,null,null,null,null,null,null,null,null,null,null,null,null,null,null,null,null,null,null,null,null,null,null,null,null,null,null,null,null,null,null,null,null,null,null,null,null,null,null,null,null,null,null,null,null,null,null,null,null,null,null,null,null,null,null,null,null,null,null,null,null,null,null,null,null,null,null,null,null,null,null,null,null,null,null,null,null,null,null,null,null,null,null,null,null,null,null,null,null,null,null,null,null,null,null,null,null,null,null,null,null,null,null,null,null,null,null,null,null,null,null,null,null,null,null,null,null,null,null,null,null,null,null,null,null,null,null,null,null,null,null,null,null,null,null,null,null,null,null,null,null,null,null,null,null,null,null,null,null,null,null,null,null,null,null,null,null,null,null,null,null,null,null,null,null,null,null,null,null,null,null,null,null,null,null,null,null,null,null,null,null,null,null,null,null,null,null,null,null,null,null,null,null,null,null,null,null,null,null,null,null,null,null,null,null,null,null,null,null,null,null,null,null,null,null,null,null,null,null,null,null,null,null,null,null,null,null,null,null,null,null,null,null,null,null,null,null,null,null,null,null,null,null,null,null,null,null,null,null,null,null,null,null,null,null,null,null,null,null,null,null,null,null,null,null,null,null,null,null,null,null,null,null,null,null,null,null,null,null,null,null,null,null,null,null,null,null,null,null,null,null,null,null,null,null,null,null,null,null,null,null,null,null,null,null,null,null,null,null,null,null,null,null,null,null,null,null,null,null,null,null,null,null,null,null,null,null,null,null,null,null,null,null,null,null,null,null,null,null,null,null,null,null,null,null,null,null,null,null,null,null,null,null,null,null,null,null,null,null,null,null,null,null,null,null,null,null,null,null,null,null,null,null,null,null,null,null,null,null,null,null,null,null,null,null,null,null,null,null,null,null,null,null,null,null,null,null,null,null,null,null,null,null,null,null,null,null,null,null,null,null,null,null,null,null,null,null,null,null,null,null,null,null,null,null,null,null,null,null,null,null,null,null,null,null,null,null,null,null,null,null,null,null,null,null,null,null,null,null,null,null,null,null,null,null,null,null,null,null,null,null,null,null,null,null,null,null,null,null,null,null,null,null,null,null,null,null,null,null,null,null,null,null,null,null,null,null,null,null,null,null,null,null,null,null,null,null,null,null,null,null,null,null,null,null,null,null,null,null,null,null,null,null,null,null,null,null,null,null,null,null,null,null,null,null,null,null,null,null,null,null,null,null,null,null,null,null,null,null,null,null,null,null,null,null,null,null,null,null,null,null,null,null,null,null,null,null,null,null,null,null,null,null,null,null,null,null,null,null,null,null,null,null,null,null,null,null,null,null,null,null,null,null,null,null,null,null,null,null,null,null,null,null,null,null,null,null,null,"يونيو",6]
[{"$f":"IF(B8=\"\",\"\",MAX($A$1:A7)+1)","v":7},"sat7","السبت",null,null,null,null,null,null,null,null,null,null,null,null,null,null,null,null,null,null,null,null,null,null,null,null,null,null,null,null,null,null,null,null,null,null,null,null,null,null,null,null,null,null,null,null,null,null,null,null,null,null,null,null,null,null,null,null,null,null,null,null,null,null,null,null,null,null,null,null,null,null,null,null,null,null,null,null,null,null,null,null,null,null,null,null,null,null,null,null,null,null,null,null,null,null,null,null,null,null,null,null,null,null,null,null,null,null,null,null,null,null,null,null,null,null,null,null,null,null,null,null,null,null,null,null,null,null,null,null,null,null,null,null,null,null,null,null,null,null,null,null,null,null,null,null,null,null,null,null,null,null,null,null,null,null,null,null,null,null,null,null,null,null,null,null,null,null,null,null,null,null,null,null,null,null,null,null,null,null,null,null,null,null,null,null,null,null,null,null,null,null,null,null,null,null,null,null,null,null,null,null,null,null,null,null,null,null,null,null,null,null,null,null,null,null,null,null,null,null,null,null,null,null,null,null,null,null,null,null,null,null,null,null,null,null,null,null,null,null,null,null,null,null,null,null,null,null,null,null,null,null,null,null,null,null,null,null,null,null,null,null,null,null,null,null,null,null,null,null,null,null,null,null,null,null,null,null,null,null,null,null,null,null,null,null,null,null,null,null,null,null,null,null,null,null,null,null,null,null,null,null,null,null,null,null,null,null,null,null,null,null,null,null,null,null,null,null,null,null,null,null,null,null,null,null,null,null,null,null,null,null,null,null,null,null,null,null,null,null,null,null,null,null,null,null,null,null,null,null,null,null,null,null,null,null,null,null,null,null,null,null,null,null,null,null,null,null,null,null,null,null,null,null,null,null,null,null,null,null,null,null,null,null,null,null,null,null,null,null,null,null,null,null,null,null,null,null,null,null,null,null,null,null,null,null,null,null,null,null,null,null,null,null,null,null,null,null,null,null,null,null,null,null,null,null,null,null,null,null,null,null,null,null,null,null,null,null,null,null,null,null,null,null,null,null,null,null,null,null,null,null,null,null,null,null,null,null,null,null,null,null,null,null,null,null,null,null,null,null,null,null,null,null,null,null,null,null,null,null,null,null,null,null,null,null,null,null,null,null,null,null,null,null,null,null,null,null,null,null,null,null,null,null,null,null,null,null,null,null,null,null,null,null,null,null,null,null,null,null,null,null,null,null,null,null,null,null,null,null,null,null,null,null,null,null,null,null,null,null,null,null,null,null,null,null,null,null,null,null,null,null,null,null,null,null,null,null,null,null,null,null,null,null,null,null,null,null,null,null,null,null,null,null,null,null,null,null,null,null,null,null,null,null,null,null,null,null,null,null,null,null,null,null,null,null,null,null,null,null,null,null,null,null,null,null,null,null,null,null,null,null,null,null,null,null,null,null,null,null,null,null,null,null,null,null,null,null,null,null,null,null,null,null,null,null,null,null,null,null,null,null,null,null,null,null,null,null,null,null,null,null,null,null,null,null,null,null,null,null,null,null,null,null,null,null,null,null,null,null,null,null,null,null,null,null,null,null,null,null,null,null,null,null,null,null,null,null,null,null,null,null,null,null,null,null,null,null,null,null,"يوليو",7]
[{"$f":"IF(B9=\"\",\"\",MAX($A$1:A8)+1)","v":8},"sat8","السبت",null,null,null,null,null,null,null,null,null,null,null,null,null,null,null,null,null,null,null,null,null,null,null,null,null,null,null,null,null,null,null,null,null,null,null,null,null,null,null,null,null,null,null,null,null,null,null,null,null,null,null,null,null,null,null,null,null,null,null,null,null,null,null,null,null,null,null,null,null,null,null,null,null,null,null,null,null,null,null,null,null,null,null,null,null,null,null,null,null,null,null,null,null,null,null,null,null,null,null,null,null,null,null,null,null,null,null,null,null,null,null,null,null,null,null,null,null,null,null,null,null,null,null,null,null,null,null,null,null,null,null,null,null,null,null,null,null,null,null,null,null,null,null,null,null,null,null,null,null,null,null,null,null,null,null,null,null,null,null,null,null,null,null,null,null,null,null,null,null,null,null,null,null,null,null,null,null,null,null,null,null,null,null,null,null,null,null,null,null,null,null,null,null,null,null,null,null,null,null,null,null,null,null,null,null,null,null,null,null,null,null,null,null,null,null,null,null,null,null,null,null,null,null,null,null,null,null,null,null,null,null,null,null,null,null,null,null,null,null,null,null,null,null,null,null,null,null,null,null,null,null,null,null,null,null,null,null,null,null,null,null,null,null,null,null,null,null,null,null,null,null,null,null,null,null,null,null,null,null,null,null,null,null,null,null,null,null,null,null,null,null,null,null,null,null,null,null,null,null,null,null,null,null,null,null,null,null,null,null,null,null,null,null,null,null,null,null,null,null,null,null,null,null,null,null,null,null,null,null,null,null,null,null,null,null,null,null,null,null,null,null,null,null,null,null,null,null,null,null,null,null,null,null,null,null,null,null,null,null,null,null,null,null,null,null,null,null,null,null,null,null,null,null,null,null,null,null,null,null,null,null,null,null,null,null,null,null,null,null,null,null,null,null,null,null,null,null,null,null,null,null,null,null,null,null,null,null,null,null,null,null,null,null,null,null,null,null,null,null,null,null,null,null,null,null,null,null,null,null,null,null,null,null,null,null,null,null,null,null,null,null,null,null,null,null,null,null,null,null,null,null,null,null,null,null,null,null,null,null,null,null,null,null,null,null,null,null,null,null,null,null,null,null,null,null,null,null,null,null,null,null,null,null,null,null,null,null,null,null,null,null,null,null,null,null,null,null,null,null,null,null,null,null,null,null,null,null,null,null,null,null,null,null,null,null,null,null,null,null,null,null,null,null,null,null,null,null,null,null,null,null,null,null,null,null,null,null,null,null,null,null,null,null,null,null,null,null,null,null,null,null,null,null,null,null,null,null,null,null,null,null,null,null,null,null,null,null,null,null,null,null,null,null,null,null,null,null,null,null,null,null,null,null,null,null,null,null,null,null,null,null,null,null,null,null,null,null,null,null,null,null,null,null,null,null,null,null,null,null,null,null,null,null,null,null,null,null,null,null,null,null,null,null,null,null,null,null,null,null,null,null,null,null,null,null,null,null,null,null,null,null,null,null,null,null,null,null,null,null,null,null,null,null,null,null,null,null,null,null,null,null,null,null,null,null,null,null,null,null,null,null,null,null,null,null,null,null,null,null,null,null,null,null,null,null,null,null,null,null,null,null,null,null,null,null,null,null,null,"أغسطس",8]
[{"$f":"IF(B10=\"\",\"\",MAX($A$1:A9)+1)","v":9},"sat9","الأحد",null,null,null,null,null,null,null,null,null,null,null,null,null,null,null,null,null,null,null,null,null,null,null,null,null,null,null,null,null,null,null,null,null,null,null,null,null,null,null,null,null,null,null,null,null,null,null,null,null,null,null,null,null,null,null,null,null,null,null,null,null,null,null,null,null,null,null,null,null,null,null,null,null,null,null,null,null,null,null,null,null,null,null,null,null,null,null,null,null,null,null,null,null,null,null,null,null,null,null,null,null,null,null,null,null,null,null,null,null,null,null,null,null,null,null,null,null,null,null,null,null,null,null,null,null,null,null,null,null,null,null,null,null,null,null,null,null,null,null,null,null,null,null,null,null,null,null,null,null,null,null,null,null,null,null,null,null,null,null,null,null,null,null,null,null,null,null,null,null,null,null,null,null,null,null,null,null,null,null,null,null,null,null,null,null,null,null,null,null,null,null,null,null,null,null,null,null,null,null,null,null,null,null,null,null,null,null,null,null,null,null,null,null,null,null,null,null,null,null,null,null,null,null,null,null,null,null,null,null,null,null,null,null,null,null,null,null,null,null,null,null,null,null,null,null,null,null,null,null,null,null,null,null,null,null,null,null,null,null,null,null,null,null,null,null,null,null,null,null,null,null,null,null,null,null,null,null,null,null,null,null,null,null,null,null,null,null,null,null,null,null,null,null,null,null,null,null,null,null,null,null,null,null,null,null,null,null,null,null,null,null,null,null,null,null,null,null,null,null,null,null,null,null,null,null,null,null,null,null,null,null,null,null,null,null,null,null,null,null,null,null,null,null,null,null,null,null,null,null,null,null,null,null,null,null,null,null,null,null,null,null,null,null,null,null,null,null,null,null,null,null,null,null,null,null,null,null,null,null,null,null,null,null,null,null,null,null,null,null,null,null,null,null,null,null,null,null,null,null,null,null,null,null,null,null,null,null,null,null,null,null,null,null,null,null,null,null,null,null,null,null,null,null,null,null,null,null,null,null,null,null,null,null,null,null,null,null,null,null,null,null,null,null,null,null,null,null,null,null,null,null,null,null,null,null,null,null,null,null,null,null,null,null,null,null,null,null,null,null,null,null,null,null,null,null,null,null,null,null,null,null,null,null,null,null,null,null,null,null,null,null,null,null,null,null,null,null,null,null,null,null,null,null,null,null,null,null,null,null,null,null,null,null,null,null,null,null,null,null,null,null,null,null,null,null,null,null,null,null,null,null,null,null,null,null,null,null,null,null,null,null,null,null,null,null,null,null,null,null,null,null,null,null,null,null,null,null,null,null,null,null,null,null,null,null,null,null,null,null,null,null,null,null,null,null,null,null,null,null,null,null,null,null,null,null,null,null,null,null,null,null,null,null,null,null,null,null,null,null,null,null,null,null,null,null,null,null,null,null,null,null,null,null,null,null,null,null,null,null,null,null,null,null,null,null,null,null,null,null,null,null,null,null,null,null,null,null,null,null,null,null,null,null,null,null,null,null,null,null,null,null,null,null,null,null,null,null,null,null,null,null,null,null,null,null,null,null,null,null,null,null,null,null,null,null,null,null,null,null,null,null,null,null,null,null,null,null,null,null,null,null,null,null,null,null,null,null,null,"سبتمبر",9]
[{"$f":"IF(B11=\"\",\"\",MAX($A$1:A10)+1)","v":10},"sat10","السبت",null,null,null,null,null,null,null,null,null,null,null,null,null,null,null,null,null,null,null,null,null,null,null,null,null,null,null,null,null,null,null,null,null,null,null,null,null,null,null,null,null,null,null,null,null,null,null,null,null,null,null,null,null,null,null,null,null,null,null,null,null,null,null,null,null,null,null,null,null,null,null,null,null,null,null,null,null,null,null,null,null,null,null,null,null,null,null,null,null,null,null,null,null,null,null,null,null,null,null,null,null,null,null,null,null,null,null,null,null,null,null,null,null,null,null,null,null,null,null,null,null,null,null,null,null,null,null,null,null,null,null,null,null,null,null,null,null,null,null,null,null,null,null,null,null,null,null,null,null,null,null,null,null,null,null,null,null,null,null,null,null,null,null,null,null,null,null,null,null,null,null,null,null,null,null,null,null,null,null,null,null,null,null,null,null,null,null,null,null,null,null,null,null,null,null,null,null,null,null,null,null,null,null,null,null,null,null,null,null,null,null,null,null,null,null,null,null,null,null,null,null,null,null,null,null,null,null,null,null,null,null,null,null,null,null,null,null,null,null,null,null,null,null,null,null,null,null,null,null,null,null,null,null,null,null,null,null,null,null,null,null,null,null,null,null,null,null,null,null,null,null,null,null,null,null,null,null,null,null,null,null,null,null,null,null,null,null,null,null,null,null,null,null,null,null,null,null,null,null,null,null,null,null,null,null,null,null,null,null,null,null,null,null,null,null,null,null,null,null,null,null,null,null,null,null,null,null,null,null,null,null,null,null,null,null,null,null,null,null,null,null,null,null,null,null,null,null,null,null,null,null,null,null,null,null,null,null,null,null,null,null,null,null,null,null,null,null,null,null,null,null,null,null,null,null,null,null,null,null,null,null,null,null,null,null,null,null,null,null,null,null,null,null,null,null,null,null,null,null,null,null,null,null,null,null,null,null,null,null,null,null,null,null,null,null,null,null,null,null,null,null,null,null,null,null,null,null,null,null,null,null,null,null,null,null,null,null,null,null,null,null,null,null,null,null,null,null,null,null,null,null,null,null,null,null,null,null,null,null,null,null,null,null,null,null,null,null,null,null,null,null,null,null,null,null,null,null,null,null,null,null,null,null,null,null,null,null,null,null,null,null,null,null,null,null,null,null,null,null,null,null,null,null,null,null,null,null,null,null,null,null,null,null,null,null,null,null,null,null,null,null,null,null,null,null,null,null,null,null,null,null,null,null,null,null,null,null,null,null,null,null,null,null,null,null,null,null,null,null,null,null,null,null,null,null,null,null,null,null,null,null,null,null,null,null,null,null,null,null,null,null,null,null,null,null,null,null,null,null,null,null,null,null,null,null,null,null,null,null,null,null,null,null,null,null,null,null,null,null,null,null,null,null,null,null,null,null,null,null,null,null,null,null,null,null,null,null,null,null,null,null,null,null,null,null,null,null,null,null,null,null,null,null,null,null,null,null,null,null,null,null,null,null,null,null,null,null,null,null,null,null,null,null,null,null,null,null,null,null,null,null,null,null,null,null,null,null,null,null,null,null,null,null,null,null,null,null,null,null,null,null,null,null,null,null,null,null,null,null,null,null,null,null,null,null,null,null,null,"أوكتوبر",10]
[{"$f":"IF(B12=\"\",\"\",MAX($A$1:A11)+1)","v":11},"sat11","السبت",null,null,null,null,null,null,null,null,null,null,null,null,null,null,null,null,null,null,null,null,null,null,null,null,null,null,null,null,null,null,null,null,null,null,null,null,null,null,null,null,null,null,null,null,null,null,null,null,null,null,null,null,null,null,null,null,null,null,null,null,null,null,null,null,null,null,null,null,null,null,null,null,null,null,null,null,null,null,null,null,null,null,null,null,null,null,null,null,null,null,null,null,null,null,null,null,null,null,null,null,null,null,null,null,null,null,null,null,null,null,null,null,null,null,null,null,null,null,null,null,null,null,null,null,null,null,null,null,null,null,null,null,null,null,null,null,null,null,null,null,null,null,null,null,null,null,null,null,null,null,null,null,null,null,null,null,null,null,null,null,null,null,null,null,null,null,null,null,null,null,null,null,null,null,null,null,null,null,null,null,null,null,null,null,null,null,null,null,null,null,null,null,null,null,null,null,null,null,null,null,null,null,null,null,null,null,null,null,null,null,null,null,null,null,null,null,null,null,null,null,null,null,null,null,null,null,null,null,null,null,null,null,null,null,null,null,null,null,null,null,null,null,null,null,null,null,null,null,null,null,null,null,null,null,null,null,null,null,null,null,null,null,null,null,null,null,null,null,null,null,null,null,null,null,null,null,null,null,null,null,null,null,null,null,null,null,null,null,null,null,null,null,null,null,null,null,null,null,null,null,null,null,null,null,null,null,null,null,null,null,null,null,null,null,null,null,null,null,null,null,null,null,null,null,null,null,null,null,null,null,null,null,null,null,null,null,null,null,null,null,null,null,null,null,null,null,null,null,null,null,null,null,null,null,null,null,null,null,null,null,null,null,null,null,null,null,null,null,null,null,null,null,null,null,null,null,null,null,null,null,null,null,null,null,null,null,null,null,null,null,null,null,null,null,null,null,null,null,null,null,null,null,null,null,null,null,null,null,null,null,null,null,null,null,null,null,null,null,null,null,null,null,null,null,null,null,null,null,null,null,null,null,null,null,null,null,null,null,null,null,null,null,null,null,null,null,null,null,null,null,null,null,null,null,null,null,null,null,null,null,null,null,null,null,null,null,null,null,null,null,null,null,null,null,null,null,null,null,null,null,null,null,null,null,null,null,null,null,null,null,null,null,null,null,null,null,null,null,null,null,null,null,null,null,null,null,null,null,null,null,null,null,null,null,null,null,null,null,null,null,null,null,null,null,null,null,null,null,null,null,null,null,null,null,null,null,null,null,null,null,null,null,null,null,null,null,null,null,null,null,null,null,null,null,null,null,null,null,null,null,null,null,null,null,null,null,null,null,null,null,null,null,null,null,null,null,null,null,null,null,null,null,null,null,null,null,null,null,null,null,null,null,null,null,null,null,null,null,null,null,null,null,null,null,null,null,null,null,null,null,null,null,null,null,null,null,null,null,null,null,null,null,null,null,null,null,null,null,null,null,null,null,null,null,null,null,null,null,null,null,null,null,null,null,null,null,null,null,null,null,null,null,null,null,null,null,null,null,null,null,null,null,null,null,null,null,null,null,null,null,null,null,null,null,null,null,null,null,null,null,null,null,null,null,null,null,null,null,null,null,null,null,null,null,null,null,null,null,"نوفمبر",11]
[{"$f":"IF(B13=\"\",\"\",MAX($A$1:A12)+1)","v":12},"sat12","الأحد",null,null,null,null,null,null,null,null,null,null,null,null,null,null,null,null,null,null,null,null,null,null,null,null,null,null,null,null,null,null,null,null,null,null,null,null,null,null,null,null,null,null,null,null,null,null,null,null,null,null,null,null,null,null,null,null,null,null,null,null,null,null,null,null,null,null,null,null,null,null,null,null,null,null,null,null,null,null,null,null,null,null,null,null,null,null,null,null,null,null,null,null,null,null,null,null,null,null,null,null,null,null,null,null,null,null,null,null,null,null,null,null,null,null,null,null,null,null,null,null,null,null,null,null,null,null,null,null,null,null,null,null,null,null,null,null,null,null,null,null,null,null,null,null,null,null,null,null,null,null,null,null,null,null,null,null,null,null,null,null,null,null,null,null,null,null,null,null,null,null,null,null,null,null,null,null,null,null,null,null,null,null,null,null,null,null,null,null,null,null,null,null,null,null,null,null,null,null,null,null,null,null,null,null,null,null,null,null,null,null,null,null,null,null,null,null,null,null,null,null,null,null,null,null,null,null,null,null,null,null,null,null,null,null,null,null,null,null,null,null,null,null,null,null,null,null,null,null,null,null,null,null,null,null,null,null,null,null,null,null,null,null,null,null,null,null,null,null,null,null,null,null,null,null,null,null,null,null,null,null,null,null,null,null,null,null,null,null,null,null,null,null,null,null,null,null,null,null,null,null,null,null,null,null,null,null,null,null,null,null,null,null,null,null,null,null,null,null,null,null,null,null,null,null,null,null,null,null,null,null,null,null,null,null,null,null,null,null,null,null,null,null,null,null,null,null,null,null,null,null,null,null,null,null,null,null,null,null,null,null,null,null,null,null,null,null,null,null,null,null,null,null,null,null,null,null,null,null,null,null,null,null,null,null,null,null,null,null,null,null,null,null,null,null,null,null,null,null,null,null,null,null,null,null,null,null,null,null,null,null,null,null,null,null,null,null,null,null,null,null,null,null,null,null,null,null,null,null,null,null,null,null,null,null,null,null,null,null,null,null,null,null,null,null,null,null,null,null,null,null,null,null,null,null,null,null,null,null,null,null,null,null,null,null,null,null,null,null,null,null,null,null,null,null,null,null,null,null,null,null,null,null,null,null,null,null,null,null,null,null,null,null,null,null,null,null,null,null,null,null,null,null,null,null,null,null,null,null,null,null,null,null,null,null,null,null,null,null,null,null,null,null,null,null,null,null,null,null,null,null,null,null,null,null,null,null,null,null,null,null,null,null,null,null,null,null,null,null,null,null,null,null,null,null,null,null,null,null,null,null,null,null,null,null,null,null,null,null,null,null,null,null,null,null,null,null,null,null,null,null,null,null,null,null,null,null,null,null,null,null,null,null,null,null,null,null,null,null,null,null,null,null,null,null,null,null,null,null,null,null,null,null,null,null,null,null,null,null,null,null,null,null,null,null,null,null,null,null,null,null,null,null,null,null,null,null,null,null,null,null,null,null,null,null,null,null,null,null,null,null,null,null,null,null,null,null,null,null,null,null,null,null,null,null,null,null,null,null,null,null,null,null,null,null,null,null,null,null,null,null,null,null,null,null,null,null,null,null,null,null,null,null,null,null,null,null,null,null,"ديسمبر",12]
[{"$f":"IF(B14=\"\",\"\",MAX($A$1:A13)+1)","v":13},"sat13","الأحد"]
[{"$f":"IF(B15=\"\",\"\",MAX($A$1:A14)+1)","v":14},"sat14","السبت"]
[{"$f":"IF(B16=\"\",\"\",MAX($A$1:A15)+1)","v":15},"sat15","السبت"]
[{"$f":"IF(B17=\"\",\"\",MAX($A$1:A16)+1)","v":16},"sat16","الأحد"]
[{"$f":"IF(B18=\"\",\"\",MAX($A$1:A17)+1)","v":17},"sat17","السبت"]
[{"$f":"IF(B19=\"\",\"\",MAX($A$1:A18)+1)","v":18},"sat18","السبت"]
[{"$f":"IF(B20=\"\",\"\",MAX($A$1:A19)+1)","v":19},"sat19","الأحد"]
[{"$f":"IF(B21=\"\",\"\",MAX($A$1:A20)+1)","v":20},"sat20","الأحد"]
[{"$f":"IF(B22=\"\",\"\",MAX($A$1:A21)+1)","v":21},"sat21","السبت"]
[{"$f":"IF(B23=\"\",\"\",MAX($A$1:A22)+1)","v":22},"sat22","السبت"]
[{"$f":"IF(B24=\"\",\"\",MAX($A$1:A23)+1)","v":23},"sat23","السبت"]
[{"$f":"IF(B25=\"\",\"\",MAX($A$1:A24)+1)","v":24},"sat24","الأحد"]
[{"$f":"IF(B26=\"\",\"\",MAX($A$1:A25)+1)","v":25},"sat25","السبت"]
[{"$f":"IF(B27=\"\",\"\",MAX($A$1:A26)+1)","v":26},"sat26","السبت"]
[{"$f":"IF(B28=\"\",\"\",MAX($A$1:A27)+1)","v":27},"sat27","الأحد"]
[{"$f":"IF(B29=\"\",\"\",MAX($A$1:A28)+1)","v":28},"sat28","الأحد"]
[{"$f":"IF(B30=\"\",\"\",MAX($A$1:A29)+1)","v":29},"sat29","السبت"]
[{"$f":"IF(B31=\"\",\"\",MAX($A$1:A30)+1)","v":30},"sat30","السبت"]
[{"$f":"IF(B32=\"\",\"\",MAX($A$1:A31)+1)","v":31},"sat31","الأحد"]
[{"$f":"IF(B33=\"\",\"\",MAX($A$1:A32)+1)","v":32},"sat32","السبت"]
[{"$f":"IF(B34=\"\",\"\",MAX($A$1:A33)+1)","v":33},"sat33","السبت"]
[{"$f":"IF(B35=\"\",\"\",MAX($A$1:A34)+1)","v":34},"sat34","الأحد"]
[{"$f":"IF(B36=\"\",\"\",MAX($A$1:A35)+1)","v":35},"sat35","الأحد"]
[{"$f":"IF(B37=\"\",\"\",MAX($A$1:A36)+1)","v":36},"sat36","السبت"]
[{"$f":"IF(B38=\"\",\"\",MAX($A$1:A37)+1)","v":37},"sat37","السبت"]
[{"$f":"IF(B39=\"\",\"\",MAX($A$1:A38)+1)","v":38},"sat38","الأحد"]
[{"$f":"IF(B40=\"\",\"\",MAX($A$1:A39)+1)","v":39},"sat39","السبت"]
[{"$f":"IF(B41=\"\",\"\",MAX($A$1:A40)+1)","v":40},"sat40","السبت"]
[{"$f":"IF(B42=\"\",\"\",MAX($A$1:A41)+1)","v":41},"sat41","الأحد"]
[{"$f":"IF(B43=\"\",\"\",MAX($A$1:A42)+1)","v":42},"sat42","الأحد"]
[{"$f":"IF(B44=\"\",\"\",MAX($A$1:A43)+1)","v":43},"sat43","السبت"]
[{"$f":"IF(B45=\"\",\"\",MAX($A$1:A44)+1)","v":44},"sat44","السبت"]
[{"$f":"IF(B46=\"\",\"\",MAX($A$1:A45)+1)","v":45},"sat45","السبت"]
[{"$f":"IF(B47=\"\",\"\",MAX($A$1:A46)+1)","v":46},"sat46","الأحد"]
[{"$f":"IF(B48=\"\",\"\",MAX($A$1:A47)+1)","v":47},"sat47","السبت"]
[{"$f":"IF(B49=\"\",\"\",MAX($A$1:A48)+1)","v":48},"sat48","السبت"]
[{"$f":"IF(B50=\"\",\"\",MAX($A$1:A49)+1)","v":49},"sat49","الأحد"]
[{"$f":"IF(B51=\"\",\"\",MAX($A$1:A50)+1)","v":50},"sat50","الأحد"]
[{"$f":"IF(B52=\"\",\"\",MAX($A$1:A51)+1)","v":51},"sat51","السبت"]
[{"$f":"IF(B53=\"\",\"\",MAX($A$1:A52)+1)","v":52},"sat52","السبت"]
[{"$f":"IF(B54=\"\",\"\",MAX($A$1:A53)+1)","v":53},"sat53","الأحد"]
[{"$f":"IF(B55=\"\",\"\",MAX($A$1:A54)+1)","v":54},"sat54","السبت"]
[{"$f":"IF(B56=\"\",\"\",MAX($A$1:A55)+1)","v":""}]
[{"$f":"IF(B57=\"\",\"\",MAX($A$1:A56)+1)","v":""}]
[{"$f":"IF(B58=\"\",\"\",MAX($A$1:A57)+1)","v":""}]
[{"$f":"IF(B59=\"\",\"\",MAX($A$1:A58)+1)","v":""}]
[{"$f":"IF(B60=\"\",\"\",MAX($A$1:A59)+1)","v":""}]
[{"$f":"IF(B61=\"\",\"\",MAX($A$1:A60)+1)","v":""}]
[{"$f":"IF(B62=\"\",\"\",MAX($A$1:A61)+1)","v":""}]
[{"$f":"IF(B63=\"\",\"\",MAX($A$1:A62)+1)","v":""}]
[{"$f":"IF(B64=\"\",\"\",MAX($A$1:A63)+1)","v":""}]
[{"$f":"IF(B65=\"\",\"\",MAX($A$1:A64)+1)","v":""}]
[{"$f":"IF(B66=\"\",\"\",MAX($A$1:A65)+1)","v":""}]
[{"$f":"IF(B67=\"\",\"\",MAX($A$1:A66)+1)","v":""}]
[{"$f":"IF(B68=\"\",\"\",MAX($A$1:A67)+1)","v":""}]
[{"$f":"IF(B69=\"\",\"\",MAX($A$1:A68)+1)","v":""}]
[{"$f":"IF(B70=\"\",\"\",MAX($A$1:A69)+1)","v":""}]
[{"$f":"IF(B71=\"\",\"\",MAX($A$1:A70)+1)","v":""}]
[{"$f":"IF(B72=\"\",\"\",MAX($A$1:A71)+1)","v":""}]
[{"$f":"IF(B73=\"\",\"\",MAX($A$1:A72)+1)","v":""}]
[{"$f":"IF(B74=\"\",\"\",MAX($A$1:A73)+1)","v":""}]
[{"$f":"IF(B75=\"\",\"\",MAX($A$1:A74)+1)","v":""}]
[{"$f":"IF(B76=\"\",\"\",MAX($A$1:A75)+1)","v":""}]
[{"$f":"IF(B77=\"\",\"\",MAX($A$1:A76)+1)","v":""}]
[{"$f":"IF(B78=\"\",\"\",MAX($A$1:A77)+1)","v":""}]
[{"$f":"IF(B79=\"\",\"\",MAX($A$1:A78)+1)","v":""}]
[{"$f":"IF(B80=\"\",\"\",MAX($A$1:A79)+1)","v":""}]
[{"$f":"IF(B81=\"\",\"\",MAX($A$1:A80)+1)","v":""}]
[{"$f":"IF(B82=\"\",\"\",MAX($A$1:A81)+1)","v":""}]
[{"$f":"IF(B83=\"\",\"\",MAX($A$1:A82)+1)","v":""}]
[{"$f":"IF(B84=\"\",\"\",MAX($A$1:A83)+1)","v":""}]
[{"$f":"IF(B85=\"\",\"\",MAX($A$1:A84)+1)","v":""}]
[{"$f":"IF(B86=\"\",\"\",MAX($A$1:A85)+1)","v":""}]
[{"$f":"IF(B87=\"\",\"\",MAX($A$1:A86)+1)","v":""}]
[{"$f":"IF(B88=\"\",\"\",MAX($A$1:A87)+1)","v":""}]
[{"$f":"IF(B89=\"\",\"\",MAX($A$1:A88)+1)","v":""}]
[{"$f":"IF(B90=\"\",\"\",MAX($A$1:A89)+1)","v":""}]
[{"$f":"IF(B91=\"\",\"\",MAX($A$1:A90)+1)","v":""}]
[{"$f":"IF(B92=\"\",\"\",MAX($A$1:A91)+1)","v":""}]
[{"$f":"IF(B93=\"\",\"\",MAX($A$1:A92)+1)","v":""}]
[{"$f":"IF(B94=\"\",\"\",MAX($A$1:A93)+1)","v":""}]
[{"$f":"IF(B95=\"\",\"\",MAX($A$1:A94)+1)","v":""}]
[{"$f":"IF(B96=\"\",\"\",MAX($A$1:A95)+1)","v":""}]
[{"$f":"IF(B97=\"\",\"\",MAX($A$1:A96)+1)","v":""}]
[{"$f":"IF(B98=\"\",\"\",MAX($A$1:A97)+1)","v":""}]
[{"$f":"IF(B99=\"\",\"\",MAX($A$1:A98)+1)","v":""}]
[{"$f":"IF(B100=\"\",\"\",MAX($A$1:A99)+1)","v":""}]
[{"$f":"IF(B101=\"\",\"\",MAX($A$1:A100)+1)","v":""}]
[{"$f":"IF(B102=\"\",\"\",MAX($A$1:A101)+1)","v":""}]
[{"$f":"IF(B103=\"\",\"\",MAX($A$1:A102)+1)","v":""}]
[{"$f":"IF(B104=\"\",\"\",MAX($A$1:A103)+1)","v":""}]
[{"$f":"IF(B105=\"\",\"\",MAX($A$1:A104)+1)","v":""}]
[{"$f":"IF(B106=\"\",\"\",MAX($A$1:A105)+1)","v":""}]
[{"$f":"IF(B107=\"\",\"\",MAX($A$1:A106)+1)","v":""}]
[{"$f":"IF(B108=\"\",\"\",MAX($A$1:A107)+1)","v":""}]
[{"$f":"IF(B109=\"\",\"\",MAX($A$1:A108)+1)","v":""}]
[{"$f":"IF(B110=\"\",\"\",MAX($A$1:A109)+1)","v":""}]
[{"$f":"IF(B111=\"\",\"\",MAX($A$1:A110)+1)","v":""}]
[{"$f":"IF(B112=\"\",\"\",MAX($A$1:A111)+1)","v":""}]
[{"$f":"IF(B113=\"\",\"\",MAX($A$1:A112)+1)","v":""}]
[{"$f":"IF(B114=\"\",\"\",MAX($A$1:A113)+1)","v":""}]
[{"$f":"IF(B115=\"\",\"\",MAX($A$1:A114)+1)","v":""}]
[{"$f":"IF(B116=\"\",\"\",MAX($A$1:A115)+1)","v":""}]
[{"$f":"IF(B117=\"\",\"\",MAX($A$1:A116)+1)","v":""}]
[{"$f":"IF(B118=\"\",\"\",MAX($A$1:A117)+1)","v":""}]
[{"$f":"IF(B119=\"\",\"\",MAX($A$1:A118)+1)","v":""}]
[{"$f":"IF(B120=\"\",\"\",MAX($A$1:A119)+1)","v":""}]
[{"$f":"IF(B121=\"\",\"\",MAX($A$1:A120)+1)","v":""}]
[{"$f":"IF(B122=\"\",\"\",MAX($A$1:A121)+1)","v":""}]
[{"$f":"IF(B123=\"\",\"\",MAX($A$1:A122)+1)","v":""}]
[{"$f":"IF(B124=\"\",\"\",MAX($A$1:A123)+1)","v":""}]
[{"$f":"IF(B125=\"\",\"\",MAX($A$1:A124)+1)","v":""}]
[{"$f":"IF(B126=\"\",\"\",MAX($A$1:A125)+1)","v":""}]
[{"$f":"IF(B127=\"\",\"\",MAX($A$1:A126)+1)","v":""}]
[{"$f":"IF(B128=\"\",\"\",MAX($A$1:A127)+1)","v":""}]
[{"$f":"IF(B129=\"\",\"\",MAX($A$1:A128)+1)","v":""}]
[{"$f":"IF(B130=\"\",\"\",MAX($A$1:A129)+1)","v":""}]
[{"$f":"IF(B131=\"\",\"\",MAX($A$1:A130)+1)","v":""}]
[{"$f":"IF(B132=\"\",\"\",MAX($A$1:A131)+1)","v":""}]
[{"$f":"IF(B133=\"\",\"\",MAX($A$1:A132)+1)","v":""}]
[{"$f":"IF(B134=\"\",\"\",MAX($A$1:A133)+1)","v":""}]
[{"$f":"IF(B135=\"\",\"\",MAX($A$1:A134)+1)","v":""}]
[{"$f":"IF(B136=\"\",\"\",MAX($A$1:A135)+1)","v":""}]
[{"$f":"IF(B137=\"\",\"\",MAX($A$1:A136)+1)","v":""}]
[{"$f":"IF(B138=\"\",\"\",MAX($A$1:A137)+1)","v":""}]
[{"$f":"IF(B139=\"\",\"\",MAX($A$1:A138)+1)","v":""}]
[{"$f":"IF(B140=\"\",\"\",MAX($A$1:A139)+1)","v":""}]
[{"$f":"IF(B141=\"\",\"\",MAX($A$1:A140)+1)","v":""}]
[{"$f":"IF(B142=\"\",\"\",MAX($A$1:A141)+1)","v":""}]
[{"$f":"IF(B143=\"\",\"\",MAX($A$1:A142)+1)","v":""}]
[{"$f":"IF(B144=\"\",\"\",MAX($A$1:A143)+1)","v":""}]
[{"$f":"IF(B145=\"\",\"\",MAX($A$1:A144)+1)","v":""}]
[{"$f":"IF(B146=\"\",\"\",MAX($A$1:A145)+1)","v":""}]
[{"$f":"IF(B147=\"\",\"\",MAX($A$1:A146)+1)","v":""}]
[{"$f":"IF(B148=\"\",\"\",MAX($A$1:A147)+1)","v":""}]
[{"$f":"IF(B149=\"\",\"\",MAX($A$1:A148)+1)","v":""}]
[{"$f":"IF(B150=\"\",\"\",MAX($A$1:A149)+1)","v":""}]
[{"$f":"IF(B151=\"\",\"\",MAX($A$1:A150)+1)","v":""}]
[{"$f":"IF(B152=\"\",\"\",MAX($A$1:A151)+1)","v":""}]
[{"$f":"IF(B153=\"\",\"\",MAX($A$1:A152)+1)","v":""}]
[{"$f":"IF(B154=\"\",\"\",MAX($A$1:A153)+1)","v":""}]
[{"$f":"IF(B155=\"\",\"\",MAX($A$1:A154)+1)","v":""}]
[{"$f":"IF(B156=\"\",\"\",MAX($A$1:A155)+1)","v":""}]
[{"$f":"IF(B157=\"\",\"\",MAX($A$1:A156)+1)","v":""}]
[{"$f":"IF(B158=\"\",\"\",MAX($A$1:A157)+1)","v":""}]
[{"$f":"IF(B159=\"\",\"\",MAX($A$1:A158)+1)","v":""}]
[{"$f":"IF(B160=\"\",\"\",MAX($A$1:A159)+1)","v":""}]
[{"$f":"IF(B161=\"\",\"\",MAX($A$1:A160)+1)","v":""}]
[{"$f":"IF(B162=\"\",\"\",MAX($A$1:A161)+1)","v":""}]
[{"$f":"IF(B163=\"\",\"\",MAX($A$1:A162)+1)","v":""}]
[{"$f":"IF(B164=\"\",\"\",MAX($A$1:A163)+1)","v":""}]
[{"$f":"IF(B165=\"\",\"\",MAX($A$1:A164)+1)","v":""}]
[{"$f":"IF(B166=\"\",\"\",MAX($A$1:A165)+1)","v":""}]
[{"$f":"IF(B167=\"\",\"\",MAX($A$1:A166)+1)","v":""}]
[{"$f":"IF(B168=\"\",\"\",MAX($A$1:A167)+1)","v":""}]
[{"$f":"IF(B169=\"\",\"\",MAX($A$1:A168)+1)","v":""}]
[{"$f":"IF(B170=\"\",\"\",MAX($A$1:A169)+1)","v":""}]
[{"$f":"IF(B171=\"\",\"\",MAX($A$1:A170)+1)","v":""}]
[{"$f":"IF(B172=\"\",\"\",MAX($A$1:A171)+1)","v":""}]
[{"$f":"IF(B173=\"\",\"\",MAX($A$1:A172)+1)","v":""}]
[{"$f":"IF(B174=\"\",\"\",MAX($A$1:A173)+1)","v":""}]
[{"$f":"IF(B175=\"\",\"\",MAX($A$1:A174)+1)","v":""}]
[{"$f":"IF(B176=\"\",\"\",MAX($A$1:A175)+1)","v":""}]
[{"$f":"IF(B177=\"\",\"\",MAX($A$1:A176)+1)","v":""}]
[{"$f":"IF(B178=\"\",\"\",MAX($A$1:A177)+1)","v":""}]
[{"$f":"IF(B179=\"\",\"\",MAX($A$1:A178)+1)","v":""}]
[{"$f":"IF(B180=\"\",\"\",MAX($A$1:A179)+1)","v":""}]
[{"$f":"IF(B181=\"\",\"\",MAX($A$1:A180)+1)","v":""}]
[{"$f":"IF(B182=\"\",\"\",MAX($A$1:A181)+1)","v":""}]
[{"$f":"IF(B183=\"\",\"\",MAX($A$1:A182)+1)","v":""}]
[{"$f":"IF(B184=\"\",\"\",MAX($A$1:A183)+1)","v":""}]
[{"$f":"IF(B185=\"\",\"\",MAX($A$1:A184)+1)","v":""}]
[{"$f":"IF(B186=\"\",\"\",MAX($A$1:A185)+1)","v":""}]
[{"$f":"IF(B187=\"\",\"\",MAX($A$1:A186)+1)","v":""}]
[{"$f":"IF(B188=\"\",\"\",MAX($A$1:A187)+1)","v":""}]
[{"$f":"IF(B189=\"\",\"\",MAX($A$1:A188)+1)","v":""}]
[{"$f":"IF(B190=\"\",\"\",MAX($A$1:A189)+1)","v":""}]
[{"$f":"IF(B191=\"\",\"\",MAX($A$1:A190)+1)","v":""}]
[{"$f":"IF(B192=\"\",\"\",MAX($A$1:A191)+1)","v":""}]
[{"$f":"IF(B193=\"\",\"\",MAX($A$1:A192)+1)","v":""}]
[{"$f":"IF(B194=\"\",\"\",MAX($A$1:A193)+1)","v":""}]
[{"$f":"IF(B195=\"\",\"\",MAX($A$1:A194)+1)","v":""}]
[{"$f":"IF(B196=\"\",\"\",MAX($A$1:A195)+1)","v":""}]
[{"$f":"IF(B197=\"\",\"\",MAX($A$1:A196)+1)","v":""}]
[{"$f":"IF(B198=\"\",\"\",MAX($A$1:A197)+1)","v":""}]
[{"$f":"IF(B199=\"\",\"\",MAX($A$1:A198)+1)","v":""}]
[{"$f":"IF(B200=\"\",\"\",MAX($A$1:A199)+1)","v":""}]

{"sheet":"sat","index":1,"n_rows":33,"n_cols":37,"rows_kept":33,"cut":false,"hidden":false,"merged":[]}
["الرقم المسلسل","اسم الطالب","المجموعة",2,5,7,9,12,14,16,19,21,23,26,28,30,null,null,null,null,null,null,null,null,null,null,null,null,null,null,null,null,null,null,"غياب سبتمبر","مصاريف الشهر","ملاحظات"]
[1,"sat1","السبت"]
[3,"sat3","السبت"]
[4,"sat4","السبت"]
[7,"sat7","السبت"]
[8,"sat8","السبت"]
[10,"sat10","السبت"]
[11,"sat11","السبت"]
[14,"sat14","السبت"]
[15,"sat15","السبت"]
[17,"sat17","السبت"]
[18,"sat18","السبت"]
[21,"sat21","السبت"]
[22,"sat22","السبت"]
[23,"sat23","السبت"]
[25,"sat25","السبت"]
[26,"sat26","السبت"]
[29,"sat29","السبت"]
[30,"sat30","السبت"]
[32,"sat32","السبت"]
[33,"sat33","السبت"]
[36,"sat36","السبت"]
[37,"sat37","السبت"]
[39,"sat39","السبت"]
[40,"sat40","السبت"]
[43,"sat43","السبت"]
[44,"sat44","السبت"]
[45,"sat45","السبت"]
[47,"sat47","السبت"]
[48,"sat48","السبت"]
[51,"sat51","السبت"]
[52,"sat52","السبت"]
[54,"sat54","السبت"]

{"sheet":"sun","index":2,"n_rows":23,"n_cols":37,"rows_kept":23,"cut":false,"hidden":false,"merged":[]}
["الرقم المسلسل","اسم الطالب","المجموعة",1,3,6,8,10,13,15,17,20,22,24,27,29,31,null,null,null,null,null,null,null,null,null,null,null,null,null,null,null,null,null,"غياب سبتمبر","مصاريف الشهر","ملاحظات"]
[2,"sat2","الأحد"]
[5,"sat5","الأحد"]
[6,"sat6","الأحد"]
[9,"sat9","الأحد"]
[12,"sat12","الأحد"]
[13,"sat13","الأحد"]
[16,"sat16","الأحد"]
[19,"sat19","الأحد"]
[20,"sat20","الأحد"]
[24,"sat24","الأحد"]
[27,"sat27","الأحد"]
[28,"sat28","الأحد"]
[31,"sat31","الأحد"]
[34,"sat34","الأحد"]
[35,"sat35","الأحد"]
[38,"sat38","الأحد"]
[41,"sat41","الأحد"]
[42,"sat42","الأحد"]
[46,"sat46","الأحد"]
[49,"sat49","الأحد"]
[50,"sat50","الأحد"]
[53,"sat53","الأحد"]